bitfinex/quotes_BTCUSD_20251214
["timestamp","ask_amount","ask_price","bid_price","bid_amount"]
[1765714952809,0.01117505,89485.0,89482.0,0.01117543]
[1765714953001,0.01117518,89484.0,89481.0,0.01117555]
[1765714953192,0.0111753,89483.0,89480.0,0.01117568]
[1765714953630,0.07956543,89482.0,89479.0,0.00161287]
[1765714953854,0.22351329,89481.0,89479.0,0.00172847]
[1765714954263,0.01117543,89482.0,89479.0,0.00172847]
[1765714955137,0.01117543,89482.0,89479.0,0.03847427]
[1765714955929,0.0111753,89483.0,89480.0,0.01117568]
[1765714959891,0.0111753,89483.0,89479.0,0.00172847]
[1765714959892,0.04861,89481.0,89479.0,0.00172847]
[1765714960100,0.04861,89480.0,89479.0,0.00172847]
[1765714960272,0.01117518,89484.0,89480.0,0.04954]
[1765714960480,0.01117468,89488.0,89485.0,0.01117505]
[1765714960847,0.01117493,89486.0,89483.0,0.02557]
[1765714961060,0.01117418,89492.0,89488.0,0.01117468]
[1765714961264,0.01117418,89492.0,89484.0,0.01117518]
[1765714961265,0.01117443,89490.0,89487.0,0.0111748]
[1765714961411,0.04820405,89493.0,89488.0,0.23466833]
[1765714961625,0.01117405,89493.0,89490.0,0.01117443]
[1765714961809,0.0111743,89491.0,89488.0,0.01117468]
[1765714962008,0.01117418,89492.0,89488.0,0.01117468]
[1765714962236,0.01117418,89492.0,89489.0,0.01117455]
[1765714962632,0.01117405,89493.0,89490.0,0.01117443]
[1765714963046,0.001,89493.0,89490.0,0.23466213]
[1765714963575,0.001,89491.0,89490.0,0.23466213]
[1765714963763,0.001,89491.0,89490.0,0.28482213]
[1765714963967,0.001,89493.0,89490.0,0.23466213]
[1765714964313,0.01768,89497.0,89494.0,0.234652]
[1765714964847,0.01768,89497.0,89494.0,0.01117393]
[1765714965980,0.01968,89497.0,89494.0,0.01117393]
[1765714966612,0.02168,89497.0,89494.0,0.01117393]
[1765714966919,0.02168,89497.0,89491.0,0.0111743]
[1765714966920,0.0111738,89495.0,89491.0,0.0111743]
[1765714967138,0.0111738,89495.0,89492.0,0.01117418]
[1765714967507,0.01117368,89496.0,89492.0,0.01117418]
[1765714967709,0.23465157,89495.0,89489.0,0.01117455]
[1765714967876,0.01117418,89492.0,89487.0,0.0111748]
[1765714968077,0.01117418,89492.0,89488.0,0.23466833]
[1765714968280,0.01117418,89492.0,89489.0,0.01117455]
[1765714968811,0.0111743,89491.0,89488.0,0.01117468]
[1765714969009,0.0111743,89491.0,89481.0,0.01117555]
[1765714969010,0.04861,89489.0,89481.0,0.01117555]
[1765714969202,0.03911138,89488.0,89484.0,0.01117518]
[1765714970350,0.03911138,89488.0,89484.0,0.2346778]
[1765714970757,0.03911138,89488.0,89484.0,0.01117518]
[1765714970986,0.0111748,89487.0,89484.0,0.01117518]
[1765714971199,0.04820418,89492.0,89487.0,0.0111748]
[1765714971391,0.0111743,89491.0,89488.0,0.01117468]
[1765714971700,0.0111743,89491.0,89487.0,0.0111748]
[1765714971918,0.0111743,89491.0,89485.0,0.01117505]
[1765714971919,0.01117468,89488.0,89485.0,0.01117505]
[1765714973188,0.01117443,89490.0,89485.0,0.01117505]
[1765714973700,0.01117455,89489.0,89485.0,0.01117505]
[1765714973841,0.01117468,89488.0,89485.0,0.01117505]
[1765714974494,0.23467095,89487.0,89484.0,0.00161287]
[1765714976642,0.0374,89486.0,89484.0,0.00161287]
[1765714977078,0.22350114,89485.0,89484.0,0.00161287]
[1765714979112,0.23468434,89482.0,89479.0,0.0001156]
[1765714979394,0.01117543,89482.0,89479.0,0.0001156]
[1765714979551,0.08566,89480.0,89479.0,0.0001156]
[1765714979916,0.15492,89480.0,89479.0,0.0001156]
[1765714980117,0.15492,89480.0,89479.0,0.0011156]
[1765714980353,0.0374,89480.0,89479.0,0.0021156]
[1765714980740,0.0374,89480.0,89479.0,0.0011156]
[1765714980930,0.0394,89480.0,89479.0,0.0011156]
[1765714981206,0.002,89480.0,89479.0,0.09988847]
[1765714981405,0.01768,89487.0,89483.0,0.0111753]
[1765714981563,0.01768,89487.0,89483.0,0.01278817]
[1765714981726,0.01768,89487.0,89486.0,0.047]
[1765714981927,0.01768,89487.0,89484.0,0.01117518]
[1765714982172,0.01768,89487.0,89483.0,0.00161287]
[1765714982546,0.01868,89487.0,89483.0,0.00161287]
[1765714982741,0.27176364,89484.0,89483.0,0.00161287]
[1765714983141,0.27176364,89484.0,89479.0,0.0001156]
[1765714983142,0.22351363,89480.0,89479.0,0.0001156]
[1765714984617,0.27177363,89480.0,89479.0,0.0001156]
[1765714984826,0.34103363,89480.0,89479.0,0.0001156]
[1765714985118,0.22351363,89480.0,89479.0,0.0001156]
[1765714985418,0.11752,89480.0,89479.0,0.0001156]
[1765714985580,0.04826,89480.0,89479.0,0.0001156]
[1765714985780,0.16753839,89480.0,89479.0,0.0001156]
[1765714986188,0.2735545,89471.0,89470.0,0.5]
[1765714986379,0.3770098,89471.0,89470.0,0.5]
[1765714986740,0.4462698,89471.0,89470.0,0.5]
[1765714987514,0.4462698,89471.0,89470.0,0.502]
[1765714987515,0.7369698,89471.0,89470.0,0.502]
[1765714987743,0.76105166,89471.0,89470.0,0.502]
[1765714988150,0.7369698,89471.0,89470.0,0.502]
[1765714988693,0.7369698,89471.0,89470.0,0.504]
[1765714989522,0.37857141,89471.0,89470.0,0.504]
[1765714989862,0.39625141,89471.0,89470.0,0.504]
[1765714990022,0.4462698,89471.0,89470.0,0.504]
[1765714994691,0.2913498,89471.0,89470.0,0.551]
[1765714995011,0.2913498,89471.0,89470.0,0.504]
[1765714995926,0.0177953,89471.0,89470.0,0.50161287]
[1765714996054,0.0177953,89471.0,89470.0,0.50861287]
[1765714996908,0.0177953,89471.0,89470.0,0.50561287]
[1765714997704,0.0177953,89471.0,89470.0,0.50161287]
[1765714999036,0.0187953,89471.0,89470.0,0.50161287]
[1765715003354,0.22340377,89524.0,89510.0,0.01117193]
[1765715003557,0.01117093,89518.0,89512.0,0.01117168]
[1765715003800,0.01117043,89522.0,89516.0,0.23459416]
[1765715003996,0.01772,89521.0,89520.0,0.01117068]
[1765715004195,0.01772,89521.0,89520.0,0.23458309]
[1765715004415,0.01772,89521.0,89520.0,0.01117068]
[1765715004880,0.01772,89521.0,89516.0,0.23459416]
[1765715005089,0.02889056,89521.0,89518.0,0.01117093]
[1765715005293,0.02889056,89521.0,89518.0,0.23458887]
[1765715005294,0.01872,89521.0,89518.0,0.23458887]
[1765715005981,0.01872,89521.0,89518.0,0.01117093]
[1765715006171,0.01972,89521.0,89518.0,0.01117093]
[1765715006400,0.04904,89519.0,89514.0,0.01117143]
[1765715006620,0.01117218,89508.0,89503.0,0.0111728]
[1765715006789,0.01117168,89512.0,89503.0,0.0111728]
[1765715006790,0.01117168,89512.0,89508.0,0.01117218]
[1765715006967,0.02889181,89511.0,89508.0,0.01117218]
[1765715007689,0.01117193,89510.0,89506.0,0.30187243]
[1765715007897,0.01117193,89510.0,89506.0,0.01117243]
[1765715008262,0.2346113,89510.0,89506.0,0.01117243]
[1765715008476,0.01117206,89509.0,89505.0,0.04471859]
[1765715008680,0.01117206,89509.0,89508.0,0.002]
[1765715009379,0.19608221,89509.0,89508.0,0.002]
[1765715009750,0.2461006,89509.0,89508.0,0.002]
[1765715009919,0.01117393,89494.0,89488.0,0.01117468]
[1765715010124,0.01772,89493.0,89487.0,0.0111748]
[1765715010269,0.02889405,89493.0,89489.0,0.01117455]
[1765715010474,0.01117418,89492.0,89489.0,0.01117455]
[1765715010687,0.01117418,89492.0,89478.0,0.02458]
[1765715010688,0.01117555,89481.0,89478.0,0.02458]
[1765715010930,0.01117518,89484.0,89478.0,0.0373688]
[1765715011134,0.02889555,89481.0,89480.0,0.0111748]
[1765715011347,0.02889555,89481.0,89478.0,0.02619287]
[1765715011698,0.25240819,89481.0,89478.0,0.02619287]
[1765715011899,0.25240819,89481.0,89478.0,0.02919287]
[1765715012306,0.25240819,89481.0,89478.0,0.02819287]
[1765715013208,0.25240819,89481.0,89478.0,0.02619287]
[1765715013659,0.25240819,89481.0,89478.0,0.02719287]
[1765715015225,0.02889555,89481.0,89478.0,0.02719287]
[1765715015842,0.25240756,89481.0,89478.0,0.02719287]
[1765715016244,0.02889555,89481.0,89478.0,0.02719287]
[1765715017541,0.25240769,89481.0,89478.0,0.02719287]
[1765715017995,0.25240769,89481.0,89478.0,0.00261287]
[1765715018759,0.04653,89479.0,89478.0,0.001]
[1765715019164,0.11414,89479.0,89478.0,0.001]
[1765715019583,0.01768,89479.0,89478.0,0.001]
[1765715019787,0.01768,89479.0,89473.0,0.01117655]
[1765715019988,0.01117593,89478.0,89473.0,0.01117655]
[1765715020911,0.01117593,89478.0,89474.0,0.01117643]
[1765715021770,0.2346998,89476.0,89473.0,0.002]
[1765715022009,0.2346998,89476.0,89473.0,0.001]
[1765715022215,0.2346998,89476.0,89474.0,0.001]
[1765715022453,0.2346998,89476.0,89475.0,0.04828]
[1765715022621,0.01117618,89476.0,89473.0,0.01117655]
[1765715022822,0.0111763,89475.0,89474.0,0.001]
[1765715023261,0.22352862,89474.0,89472.0,0.02458]
[1765715024055,0.22352862,89474.0,89473.0,0.001]
[1765715024261,0.22352862,89474.0,89472.0,0.02458]
[1765715024588,0.22352862,89474.0,89472.0,0.02558]
[1765715025705,0.01768,89487.0,89484.0,0.01117518]
[1765715025906,0.2346657,89489.0,89486.0,0.04828]
[1765715026125,0.22349615,89487.0,89486.0,0.04828]
[1765715026321,0.01117543,89482.0,89479.0,0.04917]
[1765715026498,0.01117568,89480.0,89475.0,0.0111763]
[1765715026890,0.01117568,89480.0,89476.0,0.01117618]
[1765715027097,0.01117555,89481.0,89478.0,0.01117593]
[1765715027728,0.01117593,89478.0,89474.0,0.01117643]
[1765715027924,0.01768,89477.0,89474.0,0.01117643]
[1765715028222,0.02885605,89477.0,89474.0,0.01117643]
[1765715028393,0.01117605,89477.0,89474.0,0.01117643]
[1765715028598,0.01768,89476.0,89474.0,0.01117643]
[1765715028790,0.01768,89476.0,89475.0,0.001]
[1765715029316,0.0111763,89475.0,89472.0,0.03575668]
[1765715029737,0.0111763,89475.0,89474.0,0.001]
[1765715030149,0.0111763,89475.0,89472.0,0.03736955]
[1765715030286,0.0111763,89475.0,89474.0,0.001]
[1765715030491,0.0111763,89475.0,89472.0,0.03936955]
[1765715030874,0.0111763,89475.0,89474.0,0.001]
[1765715031513,0.23470343,89475.0,89472.0,0.02819287]
[1765715031717,0.23470343,89475.0,89472.0,0.02619287]
[1765715031922,0.23470343,89475.0,89472.0,0.00261287]
[1765715032127,0.04653,89473.0,89472.0,0.001]
[1765715032531,0.22353361,89472.0,89470.0,0.5]
[1765715032845,0.04653,89471.0,89470.0,0.5]
[1765715033804,0.22353361,89472.0,89470.0,0.5]
[1765715034147,0.002,89471.0,89470.0,0.5]
[1765715034317,0.002,89471.0,89470.0,0.52619287]
[1765715034486,0.01968,89471.0,89470.0,0.57447287]
[1765715035193,0.01968,89471.0,89470.0,0.52619287]
[1765715035450,0.01968,89471.0,89470.0,0.50161287]
[1765715035809,0.13992,89471.0,89470.0,0.5]
[1765715037627,0.02068,89471.0,89470.0,0.5]
[1765715040134,0.069,89471.0,89470.0,0.5]
[1765715041212,0.19172839,89471.0,89470.0,0.5]
[1765715041852,0.4152645,89471.0,89470.0,0.5]
[1765715042531,0.4142645,89471.0,89470.0,0.50233333]
[1765715042887,0.4142645,89471.0,89470.0,0.50433333]
[1765715043083,0.4122645,89471.0,89470.0,0.50433333]
[1765715043311,0.4122645,89471.0,89470.0,0.50633333]
[1765715044118,0.7029645,89471.0,89470.0,0.50633333]
[1765715045093,0.7029645,89471.0,89470.0,0.50433333]
[1765715045640,0.7029645,89471.0,89470.0,0.50633333]
[1765715046222,0.7029645,89471.0,89470.0,0.50433333]
[1765715046630,0.7029645,89471.0,89470.0,0.50533333]
[1765715046847,0.7029645,89471.0,89470.0,0.50733333]
[1765715047265,0.7029645,89471.0,89470.0,0.50533333]
[1765715047660,0.7029645,89471.0,89470.0,0.50833333]
[1765715051563,0.7391945,89471.0,89470.0,0.50833333]
[1765715052588,0.7391945,89471.0,89470.0,0.50533333]
[1765715052943,0.7391945,89471.0,89470.0,0.50733333]
[1765715053171,0.9833945,89471.0,89470.0,0.50733333]
[1765715053558,0.9833945,89471.0,89470.0,0.50433333]
[1765715053998,0.9833945,89471.0,89470.0,0.50633333]
[1765715054212,0.6564645,89471.0,89470.0,0.50633333]
[1765715054453,0.36224611,89471.0,89470.0,0.50633333]
[1765715054867,0.34456611,89471.0,89470.0,0.50633333]
[1765715055083,0.22353611,89471.0,89470.0,0.50633333]
[1765715055290,0.01768,89471.0,89470.0,0.53091333]
[1765715056298,0.01768,89471.0,89470.0,0.52891333]
[1765715056524,0.03623,89486.0,89477.0,0.01117605]
[1765715056849,0.01768,89479.0,89477.0,0.00161287]
[1765715058463,0.02068,89479.0,89477.0,0.00161287]
[1765715059532,0.02068,89479.0,89477.0,0.22513224]
[1765715060057,0.02068,89479.0,89477.0,0.00161287]
[1765715060850,0.02068,89479.0,89478.0,0.27160863]
[1765715061166,0.003,89479.0,89478.0,0.2732215]
[1765715061363,0.003,89479.0,89478.0,0.3223915]
[1765715061751,0.002,89479.0,89478.0,0.3223915]
[1765715061994,0.002,89479.0,89478.0,0.2732215]
[1765715062198,0.003,89479.0,89478.0,0.2732215]
[1765715062390,0.003,89479.0,89478.0,0.3223915]
[1765715062791,0.001,89479.0,89478.0,0.3223915]
[1765715063168,0.003,89479.0,89478.0,0.3223915]
[1765715064761,0.002,89479.0,89478.0,0.6130915]
[1765715065848,0.002,89479.0,89478.0,0.6170915]
[1765715066035,0.22340633,89523.0,89510.0,0.01117193]
[1765715066036,0.01117118,89516.0,89510.0,0.01117193]
[1765715066240,0.01117131,89515.0,89511.0,0.01117181]
[1765715066447,0.01117156,89513.0,89510.0,0.01117193]
[1765715067055,0.01117168,89512.0,89509.0,0.02458]
[1765715067257,0.01117168,89512.0,89509.0,0.03575206]
[1765715067761,0.01117168,89512.0,89510.0,0.001]
[1765715067960,0.01117156,89513.0,89510.0,0.01217193]
[1765715068179,0.01117156,89513.0,89510.0,0.01117193]
[1765715068387,0.01117156,89513.0,89509.0,0.02458]
[1765715068388,0.002,89512.0,89509.0,0.02458]
[1765715068974,0.23760335,89513.0,89509.0,0.02458]
[1765715069177,0.23660335,89513.0,89509.0,0.02458]
[1765715069384,0.01317156,89513.0,89509.0,0.02458]
[1765715069585,0.003,89512.0,89509.0,0.02458]
[1765715069796,0.01117168,89512.0,89509.0,0.02458]
[1765715070761,0.01317168,89512.0,89509.0,0.02458]
[1765715072267,0.22343622,89511.0,89509.0,0.02458]
[1765715073444,0.22443622,89511.0,89509.0,0.02458]
[1765715073837,0.22543622,89511.0,89509.0,0.02458]
[1765715074061,0.01117243,89506.0,89502.0,0.02458]
[1765715074266,0.23462376,89505.0,89502.0,0.02458]
[1765715075356,0.23462376,89505.0,89502.0,0.001]
[1765715076000,0.22345619,89503.0,89502.0,0.001]
[1765715076592,0.01117393,89494.0,89491.0,0.2907]
[1765715076766,0.01117393,89494.0,89492.0,0.02458]
[1765715076973,0.23465277,89494.0,89492.0,0.02458]
[1765715077211,0.01117393,89494.0,89493.0,0.04898]
[1765715077772,0.01117293,89502.0,89498.0,0.01117343]
[1765715077942,0.01117243,89506.0,89502.0,0.04898]
[1765715078235,0.01117256,89505.0,89503.0,0.00949851]
[1765715078757,0.01117256,89505.0,89501.0,0.01117305]
[1765715079001,0.01117256,89505.0,89501.0,0.06034305]
[1765715079205,0.01117243,89506.0,89501.0,0.28380369]
[1765715079405,0.01117181,89511.0,89505.0,0.06015256]
[1765715079640,0.22344643,89507.0,89505.0,0.04898]
[1765715079774,0.01117218,89508.0,89505.0,0.04898]
[1765715079983,0.22344621,89507.0,89506.0,0.09815]
[1765715080175,0.01117218,89508.0,89507.0,0.04898]
[1765715080607,0.23462859,89504.0,89501.0,0.00161287]
[1765715080811,0.01117268,89504.0,89501.0,0.00161287]
[1765715081053,0.01117243,89506.0,89503.0,0.04898]
[1765715081286,0.2234512,89505.0,89503.0,0.04898]
[1765715081625,0.23462376,89505.0,89504.0,0.04898]
[1765715082635,0.01117168,89512.0,89508.0,0.01117218]
[1765715082861,0.01117106,89517.0,89508.0,0.01117218]
[1765715082862,0.01117131,89515.0,89511.0,0.06015181]
[1765715083026,0.01117156,89513.0,89509.0,0.01117206]
[1765715083229,0.01117131,89515.0,89514.0,0.07356]
[1765715083630,0.01117193,89510.0,89506.0,0.02458]
[1765715083949,0.23461327,89509.0,89506.0,0.02458]
[1765715084312,0.01117193,89510.0,89506.0,0.03575243]
[1765715084520,0.01117206,89509.0,89506.0,0.03575243]
[1765715084724,0.01117206,89509.0,89506.0,0.02458]
[1765715085120,0.23461393,89509.0,89506.0,0.02458]
[1765715085323,0.01117206,89509.0,89506.0,0.02458]
[1765715085620,0.2346141,89509.0,89506.0,0.02458]
[1765715086277,0.2356141,89509.0,89506.0,0.02458]
[1765715088254,0.01117305,89501.0,89498.0,0.2907]
[1765715089447,0.01117343,89498.0,89495.0,0.0111738]
[1765715089626,0.01117343,89498.0,89494.0,0.01117393]
[1765715090074,0.01117343,89498.0,89494.0,0.06034393]
[1765715090293,0.23464239,89498.0,89494.0,0.06034393]
[1765715090649,0.01117355,89497.0,89494.0,0.06034393]
[1765715091077,0.01117355,89497.0,89496.0,0.04898]
[1765715091997,0.22347367,89496.0,89494.0,0.001]
[1765715092173,0.0111738,89495.0,89492.0,0.03575418]
[1765715092545,0.01117355,89497.0,89493.0,0.2907]
[1765715092746,0.0111738,89495.0,89492.0,0.02458]
[1765715093570,0.0111738,89495.0,89492.0,0.02558]
[1765715093776,0.0111738,89495.0,89494.0,0.001]
[1765715094184,0.0111738,89495.0,89492.0,0.001]
[1765715094185,0.0111738,89495.0,89492.0,0.01217418]
[1765715094547,0.0111738,89495.0,89492.0,0.01317418]
[1765715095184,0.0111738,89495.0,89492.0,0.001]
[1765715095595,0.0111738,89495.0,89494.0,0.001]
[1765715096192,0.0111738,89495.0,89492.0,0.01217418]
[1765715096401,0.0111738,89495.0,89492.0,0.01317418]
[1765715096824,0.0111738,89495.0,89492.0,0.01217418]
[1765715097170,0.0111738,89495.0,89494.0,0.001]
[1765715097373,0.0111738,89495.0,89494.0,0.002]
[1765715097808,0.01117355,89497.0,89494.0,0.00261287]
[1765715098151,0.01117355,89497.0,89494.0,0.00161287]
[1765715098888,0.22347367,89496.0,89494.0,0.00161287]
[1765715099093,0.22347367,89496.0,89494.0,0.00261287]
[1765715099676,0.01117355,89497.0,89494.0,0.00261287]
[1765715100033,0.01117343,89498.0,89494.0,0.00261287]
[1765715100244,0.001,89496.0,89494.0,0.00261287]
[1765715100526,0.001,89496.0,89494.0,0.00161287]
[1765715100668,0.22447511,89496.0,89494.0,0.00161287]
[1765715101675,0.22347511,89496.0,89494.0,0.00161287]
[1765715101874,0.01117493,89486.0,89482.0,0.04917]
[1765715102092,0.01117493,89486.0,89483.0,0.04917]
[1765715102501,0.01117493,89486.0,89482.0,0.0127883]
[1765715102709,0.01117468,89488.0,89485.0,0.04906]
[1765715102919,0.01117468,89488.0,89484.0,0.2907]
[1765715102920,0.22349864,89486.0,89484.0,0.2907]
[1765715103143,0.22350597,89484.0,89482.0,0.003]
[1765715103347,0.0459,89483.0,89482.0,0.003]
[1765715103565,0.0459,89483.0,89482.0,0.001]
[1765715103566,0.11689,89483.0,89482.0,0.001]
[1765715104691,0.22350863,89482.0,89480.0,0.5]
[1765715104898,0.0459,89481.0,89480.0,0.5]
[1765715105160,0.11689,89481.0,89480.0,0.5]
[1765715105370,0.16690839,89481.0,89480.0,0.5]
[1765715106014,0.27897393,89481.0,89480.0,0.5]
[1765715106258,0.28197393,89481.0,89480.0,0.5]
[1765715107020,0.16990839,89481.0,89480.0,0.5]
[1765715107224,0.28197393,89481.0,89480.0,0.5]
[1765715108348,0.28397393,89481.0,89480.0,0.5]
[1765715119237,0.52617393,89481.0,89480.0,0.5]
[1765715119992,0.52617393,89481.0,89480.0,0.503]
[1765715120345,0.52617393,89481.0,89480.0,0.5]
[1765715120543,0.52317393,89481.0,89480.0,0.5]
[1765715120725,0.81387393,89481.0,89480.0,0.501]
[1765715120925,0.81387393,89481.0,89480.0,0.19067]
[1765715121158,0.81387393,89481.0,89480.0,0.18767]
[1765715121553,0.81387393,89481.0,89480.0,0.18867]
[1765715122322,0.22353611,89471.0,89466.0,0.00024201]
[1765715122524,0.4420145,89471.0,89466.0,0.00024201]
[1765715123494,0.4420145,89471.0,89470.0,0.00533333]
[1765715123856,0.4420145,89471.0,89470.0,0.00433333]
[1765715124327,0.6862145,89471.0,89470.0,0.00733333]
[1765715138685,0.69667247,89471.0,89470.0,0.00733333]
[1765715138907,0.6862145,89471.0,89470.0,0.00733333]
[1765715139522,0.69667337,89471.0,89470.0,0.00733333]
[1765715154424,0.6862145,89471.0,89470.0,0.00733333]
[1765715159901,0.69871519,89471.0,89470.0,0.00733333]
[1765715161531,1.0603611,89471.0,89470.0,0.00733333]
[1765715161738,1.084463,89471.0,89470.0,0.00733333]
[1765715162593,1.02399799,89471.0,89470.0,0.00733333]
[1765715163024,1.02399799,89471.0,89470.0,3.33e-06]
[1765715163226,0.5642645,89467.0,89466.0,0.00024201]
[1765715163400,0.22361359,89440.0,89439.0,0.0004]
[1765715163607,0.31923359,89440.0,89439.0,0.0004]
[1765715163810,0.38975359,89440.0,89439.0,0.0004]
[1765715165291,0.16814,89440.0,89439.0,0.0004]
[1765715167323,0.17114,89440.0,89439.0,0.0004]
[1765715170797,0.17114,89440.0,89439.0,0.00121705]
[1765715172231,0.22115839,89440.0,89439.0,0.00121705]
[1765715173639,0.005,89440.0,89439.0,0.00282992]
[1765715173845,0.02268,89440.0,89439.0,0.00282992]
[1765715175251,0.14307,89440.0,89439.0,0.00282992]
[1765715175860,0.19308839,89440.0,89439.0,0.00121705]
[1765715176033,0.22104008,89440.0,89439.0,0.00121705]
[1765715177703,0.21030621,89440.0,89439.0,0.00121705]
[1765715177906,0.21073708,89440.0,89439.0,0.00121705]
[1765715178078,0.22104008,89440.0,89439.0,0.00121705]
[1765715178485,0.19308839,89440.0,89439.0,0.00121705]
[1765715180724,0.02268,89440.0,89439.0,0.00121705]
[1765715181745,0.14307,89440.0,89439.0,0.00121705]
[1765715182745,0.17102169,89440.0,89439.0,0.00121705]
[1765715183090,0.14307,89440.0,89439.0,0.00121705]
[1765715183589,0.14307,89440.0,89439.0,0.00133235]
[1765715185110,0.005,89440.0,89439.0,0.31900131]
[1765715186006,0.002,89440.0,89439.0,0.31900131]
[1765715186404,0.003,89440.0,89439.0,0.31900131]
[1765715186604,0.001,89440.0,89439.0,0.31900131]
[1765715186811,0.003,89440.0,89439.0,0.31900131]
[1765715189414,0.003,89440.0,89439.0,0.60970131]
[1765715189622,0.003,89440.0,89439.0,0.62088086]
[1765715190247,0.0111783,89459.0,89455.0,0.0111788]
[1765715190454,0.01117805,89461.0,89457.0,0.01117855]
[1765715190652,0.01117818,89460.0,89457.0,0.01117855]
[1765715191802,0.01117805,89461.0,89458.0,0.01117843]
[1765715192007,0.01117818,89460.0,89457.0,0.01117855]
[1765715192227,0.0131783,89459.0,89456.0,0.01117868]
[1765715192636,0.0131783,89459.0,89451.0,0.22358567]
[1765715192637,0.01117868,89456.0,89451.0,0.22358567]
[1765715192839,0.01117868,89456.0,89453.0,0.03393905]
[1765715194224,0.01117843,89458.0,89454.0,0.01117892]
[1765715194473,0.01117855,89457.0,89454.0,0.01117892]
[1765715194865,0.01117843,89458.0,89454.0,0.01117892]
[1765715195168,0.01117855,89457.0,89454.0,0.01117892]
[1765715195386,0.01117868,89456.0,89453.0,0.01117905]
[1765715195790,0.01117868,89456.0,89452.0,0.01117917]
[1765715195967,0.23475489,89455.0,89449.0,0.03311955]
[1765715196191,0.0111788,89455.0,89450.0,0.01117942]
[1765715196453,0.01117892,89454.0,89450.0,0.01117942]
[1765715196781,0.01117917,89452.0,89449.0,0.02194]
[1765715197169,0.01117917,89452.0,89451.0,0.00045385]
[1765715197365,0.01117892,89454.0,89451.0,0.01163315]
[1765715197616,0.01317892,89454.0,89451.0,0.0111793]
[1765715198103,0.01117892,89454.0,89451.0,0.0111793]
[1765715198324,0.002,89452.0,89451.0,0.0111793]
[1765715198517,0.23475529,89455.0,89450.0,0.01117942]
[1765715198751,0.001,89452.0,89451.0,0.0111793]
[1765715198956,0.001,89452.0,89450.0,0.01117942]
[1765715199112,0.001,89452.0,89451.0,0.22358609]
[1765715199309,0.01117892,89454.0,89451.0,0.0111793]
[1765715199513,0.01117855,89457.0,89453.0,0.22358041]
[1765715199941,0.002,89454.0,89453.0,0.22358041]
[1765715201039,0.0111783,89459.0,89455.0,0.0111788]
[1765715201500,0.01117843,89458.0,89455.0,0.0111788]
[1765715201827,0.23473915,89461.0,89457.0,0.01117855]
[1765715202112,0.01117818,89460.0,89456.0,0.01117868]
[1765715202486,0.0111783,89459.0,89456.0,0.01117868]
[1765715202851,0.0121783,89459.0,89456.0,0.01117868]
[1765715203602,0.02885755,89465.0,89458.0,0.04236]
[1765715203803,0.02885755,89465.0,89459.0,0.2659236]
[1765715204018,0.02885755,89465.0,89461.0,0.01117805]
[1765715204213,0.02885755,89465.0,89461.0,0.23473868]
[1765715204373,0.02885755,89465.0,89461.0,0.01117805]
[1765715204785,0.2524088,89465.0,89459.0,0.0111783]
[1765715205005,0.01117805,89461.0,89458.0,0.01117843]
[1765715205592,0.01117805,89461.0,89457.0,0.23474961]
[1765715206471,0.01217805,89461.0,89457.0,0.23474961]
[1765715206679,0.01217805,89461.0,89457.0,0.01117855]
[1765715207073,0.23474178,89460.0,89456.0,0.00161287]
[1765715207293,0.0111783,89459.0,89456.0,0.00161287]
[1765715207499,0.23474178,89460.0,89456.0,0.23636474]
[1765715208297,0.23574178,89460.0,89458.0,0.00024203]
[1765715209004,0.23674178,89460.0,89458.0,0.00024203]
[1765715209402,0.23574178,89460.0,89458.0,0.00024203]
[1765715209602,0.23474178,89460.0,89458.0,0.00024203]
[1765715209838,0.23674178,89460.0,89458.0,0.00024203]
[1765715210457,0.01317818,89460.0,89458.0,0.00024203]
[1765715211215,0.2235661,89459.0,89458.0,0.00024203]
[1765715211415,0.002,89460.0,89458.0,0.00024203]
[1765715211906,0.002,89460.0,89459.0,0.04098]
[1765715212468,0.001,89460.0,89459.0,0.04098]
[1765715212671,0.02885768,89464.0,89460.0,0.23474178]
[1765715212883,0.01768,89464.0,89461.0,0.23473683]
[1765715213619,0.01768,89464.0,89461.0,0.01117805]
[1765715214252,0.01968,89464.0,89461.0,0.01117805]
[1765715214610,0.03085768,89464.0,89461.0,0.01117805]
[1765715215195,0.01117805,89461.0,89458.0,0.00024203]
[1765715215394,0.23473946,89461.0,89458.0,0.00024203]
[1765715215615,0.23473946,89461.0,89458.0,0.01142046]
[1765715215616,0.01117805,89461.0,89458.0,0.01142046]
[1765715216450,0.2235636,89460.0,89458.0,0.00024203]
[1765715217152,0.01217805,89461.0,89458.0,0.00024203]
[1765715217516,0.001,89461.0,89458.0,0.23498865]
[1765715217715,0.01117793,89462.0,89458.0,0.23498865]
[1765715217915,0.001,89460.0,89458.0,0.23498865]
[1765715218118,0.001,89460.0,89458.0,0.01142046]
[1765715218595,0.22456369,89460.0,89458.0,0.00024203]
[1765715218945,0.001,89460.0,89458.0,0.00024203]
[1765715219245,0.22356424,89460.0,89458.0,0.00024203]
[1765715219772,0.22456424,89460.0,89458.0,0.00024203]
[1765715220438,0.22556424,89460.0,89458.0,0.00024203]
[1765715221081,0.14508,89459.0,89458.0,0.00024203]
[1765715221262,0.03392,89459.0,89458.0,0.00024203]
[1765715221715,0.002,89460.0,89458.0,0.00024203]
[1765715221882,0.002,89460.0,89459.0,0.03886]
[1765715222086,0.002,89460.0,89459.0,0.0488013]
[1765715222542,0.01117793,89462.0,89459.0,0.0488013]
[1765715222686,0.0111778,89463.0,89459.0,0.0599796]
[1765715222866,0.0111778,89463.0,89459.0,0.0500383]
[1765715223071,0.01117793,89462.0,89459.0,0.06140089]
[1765715223278,0.002,89460.0,89459.0,0.03886]
[1765715223706,0.0111778,89463.0,89459.0,0.0500383]
[1765715223906,0.0131778,89463.0,89460.0,0.01117818]
[1765715224139,0.0111778,89463.0,89460.0,0.01117818]
[1765715224584,0.02885768,89464.0,89460.0,0.23474175]
[1765715225011,0.02885768,89464.0,89460.0,0.01117818]
[1765715225443,0.001,89463.0,89460.0,0.01117818]
[1765715225653,0.001,89463.0,89461.0,0.00990646]
[1765715225821,0.02885768,89464.0,89461.0,0.00990646]
[1765715225977,0.02885768,89464.0,89460.0,0.01117818]
[1765715226198,0.02068,89464.0,89461.0,0.01117805]
[1765715226405,0.02068,89464.0,89461.0,0.02110185]
[1765715226602,0.01868,89464.0,89461.0,0.02110185]
[1765715226925,0.002,89463.0,89461.0,0.01117805]
[1765715227129,0.01868,89464.0,89461.0,0.01117805]
[1765715227331,0.01768,89464.0,89461.0,0.01117805]